fUSD/lending_fUSD_20250806
["ID","MTS","AMOUNT","RATE_DAILY","PERIOD"]
[377557755,1754442640935,-1098.87,0.00035616,14]
[377557756,1754442640945,-400.0,0.00035616,14]
[377557757,1754442640955,-400.0,0.00035616,14]
[377557758,1754442640965,-1583.64,0.00035616,14]
[377557759,1754442640975,-400.0,0.00035616,14]
[377557760,1754442640984,-1529.8,0.00035616,14]
[377557761,1754442640994,-400.0,0.00035616,14]
[377557762,1754442641003,-400.0,0.00035616,14]
[377557763,1754442641012,-1102.58,0.00035616,14]
[377557764,1754442641021,-400.0,0.00035616,14]
[377557765,1754442641030,-1658.45,0.00035616,14]
[377557766,1754442641040,-400.0,0.00035616,14]
[377557767,1754442641049,-977.09,0.00035616,14]
[377557768,1754442641059,-473.22,0.00035616,14]
[377557769,1754442641068,-1718.03,0.00035616,14]
[377557770,1754442641079,-400.0,0.00035616,14]
[377557771,1754442641091,-400.0,0.00035616,14]
[377557772,1754442641100,-500.0,0.00035616,10]
[377557773,1754442641110,-400.0,0.00035616,14]
[377557774,1754442641119,-1030.9,0.00035616,14]
[377557775,1754442641128,-400.0,0.00035616,14]
[377557776,1754442641138,-799.93,0.00035616,14]
[377557777,1754442641147,-400.0,0.00035616,14]
[377557778,1754442641157,-1782.82,0.00035616,14]
[377557779,1754442641167,-400.0,0.00035616,14]
[377557780,1754442641176,-400.0,0.00035616,14]
[377557781,1754442641186,-1638.95,0.00035616,14]
[377557782,1754442641196,-2528.78,0.00035616,2]
[377557783,1754442641208,-625.21,0.00035616,14]
[377557784,1754442641217,-400.0,0.00035616,14]
[377557785,1754442641226,-400.0,0.00035616,14]
[377557786,1754442641235,-400.0,0.00035616,14]
[377557787,1754442641244,-500.0,0.00035616,14]
[377557788,1754442641254,-1493.49,0.00035616,14]
[377557789,1754442641263,-2036.4,0.00035616,14]
[377557790,1754442641272,-500.0,0.00035616,14]
[377557791,1754442641283,-500.0,0.00035616,14]
[377557792,1754442641294,-500.0,0.00035616,14]
[377557793,1754442641303,-500.0,0.00035616,14]
[377557794,1754442641314,-500.0,0.00035616,14]
[377557795,1754442641323,-500.0,0.00035616,14]
[377557796,1754442641332,-410.9,0.00035616,14]
[377557797,1754442641342,-500.0,0.00035616,14]
[377557798,1754442641351,-421.35677959,0.00035616,14]
[377557799,1754442641361,-400.0,0.00035616,14]
[377557800,1754442641373,-400.0,0.00035616,14]
[377557801,1754442641383,-400.0,0.00035616,14]
[377557802,1754442641393,-400.0,0.00035616,14]
[377557803,1754442641402,-400.0,0.00035616,14]
[377557804,1754442641411,-1210.7,0.00035616,14]
[377557805,1754442641421,-10006.13,0.00035616,14]
[377557806,1754442641431,-1629.9,0.00035616,14]
[377557807,1754442641440,-400.0,0.00035616,14]
[377557808,1754442641449,-1492.93,0.00035616,14]
[377557809,1754442641459,-1167.12,0.00035616,14]
[377557810,1754442641468,-539.61,0.00035616,14]
[377557811,1754442641478,-1064.71,0.00035616,14]
[377557812,1754442641487,-1064.71,0.00035616,14]
[377557813,1754442641496,-1588.35,0.00035616,14]
[377557814,1754442641505,-1064.71,0.00035616,14]
[377557815,1754442641514,-1064.71,0.00035616,14]
[377557816,1754442641523,-1064.71,0.00035616,14]
[377557817,1754442641533,-1152.25,0.00035616,14]
[377557818,1754442641542,-1064.71,0.00035616,14]
[377557819,1754442641551,-1739.77,0.00035616,14]
[377557820,1754442641560,-1064.71,0.00035616,14]
[377557821,1754442641570,-1064.71,0.00035616,14]
[377557822,1754442641581,-1064.71,0.00035616,14]
[377557823,1754442641590,-1064.71,0.00035616,14]
[377557824,1754442641600,-400.0,0.00035616,14]
[377557825,1754442641609,-1064.71,0.00035616,14]
[377557826,1754442641618,-1064.71,0.00035616,14]
[377557827,1754442641627,-1064.71,0.00035616,14]
[377557828,1754442641639,-1064.71,0.00035616,14]
[377557829,1754442641648,-1064.71,0.00035616,14]
[377557830,1754442641657,-1064.71,0.00035616,14]
[377557831,1754442641667,-400.0,0.00035616,14]
[377557832,1754442641675,-1064.71,0.00035616,14]
[377557833,1754442641685,-1064.71,0.00035616,14]
[377557834,1754442641694,-1064.71,0.00035616,14]
[377557835,1754442641703,-665.27,0.00035616,14]
[377557836,1754442641712,-400.0,0.00035616,14]
[377557837,1754442641721,-400.0,0.00035616,14]
[377557838,1754442641730,-1156.38,0.00035616,14]
[377557839,1754442641740,-1064.71,0.00035616,14]
[377557840,1754442641750,-1064.71,0.00035616,14]
[377557841,1754442641759,-400.0,0.00035616,14]
[377557842,1754442641768,-1064.71,0.00035616,14]
[377557843,1754442641777,-1235.39,0.00035616,14]
[377557844,1754442641787,-1064.71,0.00035616,14]
[377557845,1754442641796,-1064.89,0.00035616,14]
[377557846,1754442641804,-400.0,0.00035616,14]
[377557847,1754442641814,-500.0,0.00035616,14]
[377557848,1754442641822,-560.1,0.00035616,14]
[377557849,1754442641831,-400.0,0.00035616,14]
[377557850,1754442641841,-549.73,0.00035616,14]
[377557851,1754442641850,-1042.08,0.00035616,14]
[377557852,1754442641859,-555.31,0.00035616,14]
[377557853,1754442641868,-1645.48,0.00035616,14]
[377557854,1754442641877,-1674.52,0.00035616,14]
[377557855,1754442641888,-400.0,0.00035616,14]
[377557856,1754442641897,-901.39,0.00035616,14]
[377557857,1754442641907,-610.62,0.00035616,14]
[377557858,1754442641916,-771.19,0.00035616,14]
[377557859,1754442641924,-2345.36,0.00035616,14]
[377557860,1754442641934,-400.0,0.00035616,14]
[377557861,1754442641944,-855.1,0.00035616,14]
[377557862,1754442641953,-571.85,0.00035616,14]
[377557863,1754442641962,-1738.31,0.00035616,14]
[377557864,1754442641971,-400.0,0.00035616,14]
[377557865,1754442641980,-2776.05,0.00035616,14]
[377557866,1754442641989,-368.6609804,0.00035616,14]
[377557867,1754442641999,-640.36,0.00035616,14]
[377557868,1754442642008,-400.0,0.00035616,14]
[377557869,1754442642017,-421.1,0.00035616,14]
[377557870,1754442642026,-1250.35,0.00035616,14]
[377557871,1754442642170,-648.11,0.00035616,14]
[377557872,1754442642180,-648.31,0.00035616,14]
[377557873,1754442642190,-530.26130454,0.00035616,14]
[377557874,1754442642202,-400.0,0.00035616,14]
[377557875,1754442642222,-400.0,0.00035616,14]
[377557876,1754442642237,-541.69,0.00035616,14]
[377557877,1754442642249,-400.0,0.00035616,120]
[377557878,1754442642258,-400.0,0.00035616,14]
[377557879,1754442642268,-481.1,0.00035616,14]
[377557880,1754442642277,-500.0,0.00035616,14]
[377557881,1754442642286,-500.0,0.00035616,14]
[377557882,1754442642296,-609.4236206,0.00035616,14]
[377557883,1754442642305,-693.82,0.00035616,14]
[377557884,1754442642314,-400.0,0.00035616,14]
[377557885,1754442642323,-1143.9,0.00035616,14]
[377557886,1754442642333,-1843.83,0.00035616,14]
[377557887,1754442642342,-1216.09,0.00035616,14]
[377557888,1754442642351,-400.0,0.00035616,14]
[377557889,1754442642361,-748.15,0.00035616,14]
[377557890,1754442642370,-2563.26,0.00035616,14]
[377557891,1754442642380,-400.0,0.00035616,14]
[377557892,1754442642392,-929.85,0.00035616,14]
[377557893,1754442642401,-400.0,0.00035616,14]
[377557894,1754442642411,-960.91,0.00035616,14]
[377557895,1754442642420,-953.28,0.00035616,14]
[377557896,1754442642430,-1108.19,0.00035616,14]
[377557897,1754442642440,-1077.76,0.00035616,14]
[377557898,1754442642449,-579.13,0.00035616,14]
[377557899,1754442642460,-3361.78,0.00035616,14]
[377557900,1754442642469,-295.84021508,0.00035616,14]
[377557901,1754442642479,-400.0,0.00035616,14]
[377557902,1754442642489,-400.0,0.00035616,14]
[377557903,1754442642498,-400.0,0.00035616,14]
[377557904,1754442642508,-718.46,0.00035616,14]
[377557905,1754442642518,-451.54,0.00035616,14]
[377557906,1754442642528,-400.0,0.00035616,14]
[377557907,1754442642538,-877.04,0.00035616,14]
[377557908,1754442642547,-536.36,0.00035616,14]
[377557910,1754442642556,-2656.71,0.00035616,14]
[377557911,1754442642566,-663.47,0.00035616,14]
[377557912,1754442642575,-400.0,0.00035616,14]
[377557913,1754442642584,-759.76,0.00035616,14]
[377557914,1754442642594,-400.0,0.00035616,14]
[377557915,1754442642603,-1728.96,0.00035616,14]
[377557916,1754442642612,-400.0,0.00035616,14]
[377557917,1754442642621,-400.0,0.00035616,14]
[377557918,1754442642631,-1511.99,0.00035616,14]
[377557919,1754442642642,-1815.4,0.00035616,14]
[377557920,1754442642651,-1017.31,0.00035616,14]
[377557921,1754442642660,-1422.48,0.00035616,14]
[377557922,1754442642670,-400.0,0.00035616,14]
[377557924,1754442642680,-1276.47,0.00035616,14]
[377557925,1754442642689,-400.0,0.00035616,14]
[377557926,1754442642699,-400.0,0.00035616,14]
[377557929,1754442642708,-1666.11,0.00035616,14]
[377557930,1754442642718,-854.48,0.00035616,14]
[377557931,1754442642727,-400.0,0.00035616,14]
[377557932,1754442642736,-400.0,0.00035616,14]
[377557933,1754442642745,-1981.27,0.00035616,14]
[377557934,1754442642756,-400.0,0.00035616,14]
[377557935,1754442642766,-400.0,0.00035616,14]
[377557936,1754442642775,-400.0,0.00035616,14]
[377557937,1754442642785,-400.0,0.00035616,14]
[377557938,1754442642795,-400.0,0.00035616,14]
[377557939,1754442642806,-917.59,0.00035616,14]
[377557940,1754442642816,-400.0,0.00035616,14]
[377557941,1754442642825,-1423.17,0.00035616,14]
[377557942,1754442642834,-400.0,0.00035616,14]
[377557943,1754442642844,-635.16,0.00035616,14]
[377557944,1754442642853,-400.0,0.00035616,14]
[377557945,1754442642862,-400.0,0.00035616,14]
[377557946,1754442642872,-1602.49,0.00035616,14]
[377557947,1754442642881,-400.0,0.00035616,14]
[377557948,1754442642892,-462.48,0.00035616,14]
[377557949,1754442642902,-400.0,0.00035616,14]
[377557950,1754442642911,-1993.92,0.00035616,14]
[377557951,1754442642921,-400.0,0.00035616,14]
[377557952,1754442642930,-400.0,0.00035616,14]
[377557953,1754442642940,-400.0,0.00035616,14]
[377557954,1754442642950,-400.0,0.00035616,14]
[377557955,1754442642959,-1745.29,0.00035616,14]
[377557956,1754442642969,-400.0,0.00035616,7]
[377557957,1754442642979,-277.94301966,0.00035616,14]
[377557958,1754442642990,-1505.87,0.00035616,14]
[377557959,1754442643000,-714.94,0.00035616,14]
[377557960,1754442643010,-400.0,0.00035616,14]
[377557961,1754442643019,-400.0,0.00035616,14]
[377557962,1754442643030,-400.0,0.00035616,14]
[377557963,1754442643039,-400.0,0.00035616,14]
[377557964,1754442643048,-400.0,0.00035616,14]
[377557965,1754442643058,-1862.67,0.00035616,14]
[377557966,1754442643067,-1330.24,0.00035616,14]
[377557967,1754442643078,-1500.66,0.00035616,14]
[377557968,1754442643089,-400.0,0.00035616,14]
[377557969,1754442643099,-1806.35,0.00035616,14]
[377557970,1754442643110,-400.0,0.00035616,14]
[377557971,1754442643120,-400.0,0.00035616,14]
[377557972,1754442643133,-400.0,0.00035616,14]
[377557973,1754442643142,-1681.57,0.00035616,14]
[377557974,1754442643152,-1855.83,0.00035616,14]
[377557975,1754442643162,-400.0,0.00035616,14]
[377557976,1754442643172,-400.0,0.00035616,14]
[377557977,1754442643183,-939.15,0.00035616,14]
[377557978,1754442643195,-400.0,0.00035616,14]
[377557979,1754442643207,-400.0,0.00035616,14]
[377557981,1754442643217,-400.0,0.00035616,14]
[377557984,1754442643228,-1183.54,0.00035616,14]
[377557986,1754442643237,-1796.76,0.00035616,14]
[377557988,1754442643247,-433.49,0.00035616,14]
[377557990,1754442643256,-400.0,0.00035616,14]
[377557991,1754442643267,-540.41,0.00035616,14]
[377557992,1754442643277,-400.0,0.00035616,14]
[377557993,1754442643286,-426.54,0.00035616,14]
[377557994,1754442643296,-400.0,0.00035616,14]
[377557995,1754442643305,-400.0,0.00035616,14]
[377557996,1754442643315,-1268.78,0.00035616,14]
[377557997,1754442643325,-783.57,0.00035616,14]
[377557998,1754442643334,-947.41,0.00035616,14]
[377557999,1754442643344,-400.0,0.00035616,14]
[377558000,1754442643354,-1648.95,0.00035616,14]
[377558001,1754442643364,-400.0,0.00035616,14]
[377558002,1754442643374,-1722.77,0.00035616,14]
[377558003,1754442643394,-400.0,0.00035616,14]
[377558004,1754442643405,-1349.25,0.00035616,14]
[377558005,1754442643415,-400.0,0.00035616,14]
[377558006,1754442643425,-400.0,0.00035616,14]
[377558007,1754442643435,-609.22,0.00035616,14]
[377558008,1754442643445,-460.65,0.00035616,14]
[377558009,1754442643455,-607.57,0.00035616,14]
[377558010,1754442643466,-1560.94,0.00035616,14]
[377558011,1754442643475,-1489.1,0.00035616,14]
[377558012,1754442643486,-400.0,0.00035616,14]
[377558013,1754442643496,-1643.92,0.00035616,14]
[377558014,1754442643506,-3508.69,0.00035616,14]
[377558015,1754442643517,-400.0,0.00035616,14]
[377558016,1754442643528,-1475.19,0.00035616,14]
[377558017,1754442643539,-3179.65,0.00035616,14]
[377558018,1754442643550,-1761.36,0.00035616,14]
[377558019,1754442643560,-1697.46,0.00035616,14]
[377558020,1754442643570,-400.0,0.00035616,14]
[377558021,1754442643580,-400.0,0.00035616,14]
[377558022,1754442643591,-400.0,0.00035616,14]
[377558023,1754442643600,-400.0,0.00035616,14]
[377558024,1754442643610,-1809.63,0.00035616,14]
[377558025,1754442643620,-400.0,0.00035616,14]
[377558026,1754442643629,-400.0,0.00035616,14]
[377558027,1754442643641,-400.0,0.00035616,14]
[377558028,1754442643651,-400.0,0.00035616,14]
[377558029,1754442643661,-996.45,0.00035616,14]
[377558030,1754442643671,-786.64,0.00035616,14]
[377558031,1754442643680,-1813.1,0.00035616,14]
[377558032,1754442643690,-1549.43,0.00035616,14]
[377558033,1754442643699,-978.82,0.00035616,14]
[377558034,1754442643709,-400.0,0.00035616,14]
[377558035,1754442643720,-400.0,0.00035616,14]
[377558036,1754442643730,-452.79,0.00035616,14]
[377558037,1754442643739,-1973.22,0.00035616,14]
[377558038,1754442643749,-1411.16,0.00035616,14]
[377558039,1754442643759,-400.0,0.00035616,14]
[377558040,1754442643768,-400.0,0.00035616,14]
[377558041,1754442643779,-400.0,0.00035616,14]
[377558042,1754442643788,-400.0,0.00035616,14]
[377558043,1754442643798,-1309.23,0.00035616,14]
[377558044,1754442643808,-1898.39,0.00035616,14]
[377558045,1754442643818,-1356.93,0.00035616,14]
[377558046,1754442643827,-400.0,0.00035616,14]
[377558047,1754442643838,-401.4477715,0.00035616,14]
[377558048,1754442643848,-400.0,0.00035616,14]
[377558049,1754442643858,-400.0,0.00035616,14]
[377558050,1754442643867,-400.0,0.00035616,14]
[377558051,1754442643877,-1218.86,0.00035616,14]
[377558052,1754442643887,-400.0,0.00035616,14]
[377558053,1754442643897,-517.04,0.00035616,14]
[377558054,1754442643907,-400.0,0.00035616,14]
[377558055,1754442643917,-400.0,0.00035616,14]
[377558056,1754442643927,-1686.02,0.00035616,14]
[377558057,1754442643937,-613.23,0.00035616,14]
[377558058,1754442643947,-400.0,0.00035616,14]
[377558059,1754442643957,-1577.44,0.00035616,14]
[377558060,1754442643967,-2936.53,0.00035616,14]
[377558061,1754442643976,-400.0,0.00035616,14]
[377558062,1754442643986,-1064.45,0.00035616,14]
[377558063,1754442643995,-2278.06,0.00035616,14]
[377558064,1754442644005,-400.0,0.00035616,14]
[377558065,1754442644014,-400.0,0.00035616,14]
[377558066,1754442644025,-1099.07,0.00035616,14]
[377558067,1754442644035,-400.0,0.00035616,14]
[377558068,1754442644045,-400.0,0.00035616,14]
[377558069,1754442644056,-507.98,0.00035616,14]
[377558070,1754442644068,-1262.49,0.00035616,14]
[377558071,1754442644078,-400.0,0.00035616,14]
[377558072,1754442644087,-400.0,0.00035616,14]
[377558073,1754442644097,-400.0,0.00035616,14]
[377558074,1754442644107,-323.12197177,0.00035616,14]
[377558075,1754442644117,-1786.24,0.00035616,14]
[377558076,1754442644126,-1929.27,0.00035616,14]
[377558077,1754442644136,-881.4,0.00035616,14]
[377558078,1754442644145,-400.0,0.00035616,14]
[377558079,1754442644155,-400.0,0.00035616,14]
[377558080,1754442644165,-154.14091725,0.00035616,14]
[377558081,1754442644175,-1377.54,0.00035616,14]
[377558082,1754442644184,-1207.69,0.00035616,14]
[377558083,1754442644194,-458.1,0.00035616,14]
[377558084,1754442644205,-1137.9,0.00035616,14]
[377558085,1754442644216,-400.0,0.00035616,14]
[377558086,1754442644226,-997.78,0.00035616,14]
[377558087,1754442644236,-1750.37,0.00035616,14]
[377558088,1754442644247,-1730.65,0.00035616,14]
[377558089,1754442644257,-1000.56,0.00035616,14]
[377558090,1754442644266,-1365.84,0.00035616,14]
[377558091,1754442644276,-400.0,0.00035616,14]
[377558092,1754442644286,-2341.23,0.00035616,14]
[377558093,1754442644296,-400.0,0.00035616,14]
[377558094,1754442644306,-400.0,0.00035616,14]
[377558095,1754442644315,-400.0,0.00035616,14]
[377558096,1754442644325,-2067.81,0.00035616,14]
[377558097,1754442644335,-520.16,0.00035616,14]
[377558098,1754442644344,-3777.24,0.00035616,14]
[377558099,1754442644354,-1930.61,0.00035616,14]
[377558100,1754442644364,-400.0,0.00035616,14]
[377558101,1754442644373,-400.0,0.00035616,14]
[377558102,1754442644384,-1228.29,0.00035616,14]
[377558103,1754442644394,-400.0,0.00035616,14]
[377558104,1754442644403,-400.0,0.00035616,14]
[377558105,1754442644413,-400.0,0.00035616,14]
[377558106,1754442644423,-911.04,0.00035616,14]
[377558107,1754442644432,-1576.28,0.00035616,14]
[377558108,1754442644825,-950.59,0.00035616,14]
[377558109,1754442644853,-400.0,0.00035616,14]
[377558110,1754442644862,-402.4538146,0.00035616,14]
[377558111,1754442644871,-823.06,0.00035616,14]
[377558112,1754442644880,-1595.25,0.00035616,14]
[377558113,1754442644891,-1716.12,0.00035616,14]
[377558114,1754442644901,-978.13,0.00035616,14]
[377558115,1754442644910,-400.0,0.00035616,14]
[377558116,1754442644919,-419.28846134,0.00035616,14]
[377558117,1754442644930,-500.0,0.00035616,14]
[377558118,1754442644939,-649.47,0.00035616,14]
[377558119,1754442644948,-400.0,0.00035616,14]
[377558120,1754442644958,-1326.1,0.00035616,14]
[377558121,1754442644967,-400.0,0.00035616,14]
[377558122,1754442644976,-400.0,0.00035616,14]
[377558123,1754442644986,-500.0,0.00035616,14]
[377558124,1754442644995,-347.97946181,0.00035616,14]
[377558125,1754442645004,-400.0,0.00035616,14]
[377558126,1754442645014,-400.0,0.00035616,14]
[377558127,1754442645025,-400.0,0.00035616,14]
[377558128,1754442645035,-1901.09,0.00035616,14]
[377558129,1754442645046,-651.8,0.00035616,14]
[377558130,1754442645056,-2522.71,0.00035616,14]
[377558131,1754442645065,-1221.21,0.00035616,14]
[377558132,1754442645074,-400.0,0.00035616,14]
[377558133,1754442645088,-1954.85,0.00035616,14]
[377558134,1754442645100,-995.31,0.00035616,14]
[377558135,1754442645109,-1654.29,0.00035616,14]
[377558136,1754442645127,-400.0,0.00035616,14]
[377558137,1754442645141,-400.0,0.00035616,14]
[377558138,1754442645150,-400.0,0.00035616,14]
[377558139,1754442645160,-400.0,0.00035616,14]
[377558140,1754442645169,-400.0,0.00035616,14]
[377558141,1754442645178,-460.29,0.00035616,14]
[377558142,1754442645187,-400.0,0.00035616,14]
[377558143,1754442645196,-400.0,0.00035616,14]
[377558144,1754442645210,-400.0,0.00035616,14]
[377558145,1754442645220,-1864.66,0.00035616,14]
[377558146,1754442645229,-1554.97,0.00035616,14]
[377558147,1754442645240,-1931.75,0.00035616,14]
[377558148,1754442645249,-400.0,0.00035616,14]
[377558149,1754442645258,-2171.6,0.00035616,14]
[377558150,1754442645267,-1637.12,0.00035616,14]
[377558151,1754442645276,-1890.83,0.00035616,14]
[377558152,1754442645286,-966.76,0.00035616,14]
[377558153,1754442645295,-675.89,0.00035616,14]
[377558154,1754442645304,-1957.27,0.00035616,14]
[377558155,1754442645314,-400.0,0.00035616,14]
[377558156,1754442645323,-569.93,0.00035616,14]
[377558157,1754442645332,-1186.55,0.00035616,14]
[377558158,1754442645342,-400.0,0.00035616,14]
[377558159,1754442645351,-1734.52,0.00035616,14]
[377558160,1754442645361,-400.0,0.00035616,14]
[377558161,1754442645370,-1966.61,0.00035616,14]
[377558162,1754442645379,-926.78,0.00035616,14]
[377558163,1754442645391,-400.0,0.00035616,14]
[377558164,1754442645401,-2127.72,0.00035616,14]
[377558165,1754442645411,-721.87,0.00035616,14]
[377558166,1754442645420,-565.93,0.00035616,14]
[377558167,1754442645430,-400.0,0.00035616,14]
[377558168,1754442645439,-400.0,0.00035616,14]
[377558169,1754442645449,-1157.08,0.00035616,14]
[377558170,1754442645459,-1299.26,0.00035616,14]
[377558171,1754442645469,-579.8,0.00035616,14]
[377558172,1754442645478,-521.17885176,0.00035616,14]
[377558173,1754442645487,-820.22,0.00035616,14]
[377558174,1754442645496,-400.0,0.00035616,14]
[377558175,1754442645506,-400.0,0.00035616,14]
[377558176,1754442645515,-1657.04,0.00035616,14]
[377558177,1754442645524,-400.0,0.00035616,14]
[377558178,1754442645533,-1778.69,0.00035616,14]
[377558179,1754442645543,-400.0,0.00035616,14]
[377558180,1754442645553,-1516.87,0.00035616,14]
[377558182,1754442645562,-727.11,0.00035616,14]
[377558183,1754442645572,-400.0,0.00035616,14]
[377558184,1754442645581,-400.0,0.00035616,14]
[377558185,1754442645591,-400.0,0.00035616,14]
[377558186,1754442645600,-1676.54,0.00035616,14]
[377558187,1754442645609,-335.77298063,0.00035616,14]
[377558188,1754442645618,-400.0,0.00035616,14]
[377558189,1754442645627,-1762.97,0.00035616,14]
[377558190,1754442645638,-1555.03,0.00035616,14]
[377558191,1754442645647,-2264.12,0.00035616,14]
[377558192,1754442645657,-400.0,0.00035616,14]
[377558193,1754442645666,-2031.94,0.00035616,14]
[377558194,1754442645675,-400.0,0.00035616,14]
[377558195,1754442645685,-930.41,0.00035616,14]
[377558196,1754442645694,-760.26,0.00035616,14]
[377558197,1754442645703,-400.0,0.00035616,14]
[377558198,1754442645712,-400.0,0.00035616,14]
[377558200,1754442645722,-400.0,0.00035616,14]
[377558202,1754442645734,-786.19,0.00035616,14]
[377558203,1754442645743,-406.98,0.00035616,14]
[377558204,1754442645752,-524.56,0.00035616,14]
[377558205,1754442645761,-531.32,0.00035616,14]
[377558206,1754442645771,-589.63,0.00035616,14]
[377558207,1754442645780,-1026.06,0.00035616,14]
[377558208,1754442645789,-400.0,0.00035616,14]
[377558209,1754442645799,-1144.28,0.00035616,14]
[377558210,1754442645808,-400.0,0.00035616,14]
[377558211,1754442645818,-400.0,0.00035616,14]
[377558212,1754442645828,-400.0,0.00035616,14]
[377558213,1754442645837,-400.0,0.00035616,14]
[377558214,1754442645846,-2523.61,0.00035616,14]
[377558215,1754442645856,-688.8,0.00035616,14]
[377558216,1754442645865,-400.0,0.00035616,14]
[377558217,1754442645874,-400.0,0.00035616,14]
[377558218,1754442645883,-2483.16,0.00035616,14]
[377558219,1754442645894,-400.0,0.00035616,14]
[377558220,1754442645903,-400.0,0.00035616,14]
[377558221,1754442645912,-1380.5,0.00035616,14]
[377558222,1754442645924,-400.0,0.00035616,14]
[377558223,1754442645934,-400.0,0.00035616,14]
[377558224,1754442645945,-403.12906228,0.00035616,14]
[377558225,1754442645955,-1463.79,0.00035616,14]
[377558226,1754442645964,-400.0,0.00035616,14]
[377558227,1754442645973,-489.01,0.00035616,14]
[377558228,1754442645983,-2205.35,0.00035616,14]
[377558229,1754442645992,-400.0,0.00035616,14]
[377558230,1754442646001,-400.0,0.00035616,14]
[377558231,1754442646011,-2207.6,0.00035616,14]
[377558232,1754442646020,-491.72,0.00035616,14]
[377558233,1754442646029,-2085.19,0.00035616,14]
[377558234,1754442646039,-400.0,0.00035616,14]
[377558235,1754442646048,-414.28,0.00035616,14]
[377558236,1754442646058,-400.0,0.00035616,14]
[377558237,1754442646068,-400.0,0.00035616,14]
[377558238,1754442646077,-1972.25,0.00035616,14]
[377558239,1754442646087,-400.0,0.00035616,14]
[377558240,1754442646097,-1215.67,0.00035616,14]
[377558241,1754442646107,-400.0,0.00035616,14]
[377558242,1754442646117,-794.93,0.00035616,14]
[377558243,1754442646126,-400.0,0.00035616,14]
[377558244,1754442646135,-422.44,0.00035616,14]
[377558245,1754442646145,-400.0,0.00035616,2]
[377558246,1754442646155,-1015.96,0.00035616,14]
[377558247,1754442646165,-3346.64,0.00035616,14]
[377558248,1754442646174,-1312.75,0.00035616,14]
[377558249,1754442646183,-400.0,0.00035616,14]
[377558250,1754442646193,-400.0,0.00035616,14]
[377558251,1754442646203,-777.29,0.00035616,14]
[377558252,1754442646215,-1172.709491,0.00035616,14]
[377558253,1754442646224,-400.0,0.00035616,14]
[377558254,1754442646233,-400.0,0.00035616,14]
[377558255,1754442646244,-520.67751191,0.00035616,14]
[377558256,1754442646255,-400.0,0.00035616,14]
[377558257,1754442646265,-932.98,0.00035616,14]
[377558258,1754442646276,-2888.34,0.00035616,14]
[377558259,1754442646287,-934.564391,0.00035616,14]
[377558260,1754442646299,-1292.66,0.00035616,14]
[377558261,1754442646308,-400.0,0.00035616,14]
[377558263,1754442646318,-1868.41,0.00035616,14]
[377558264,1754442646327,-709.55,0.00035616,14]
[377558265,1754442646337,-2405.61,0.00035616,14]
[377558266,1754442646347,-400.0,0.00035616,14]
[377558267,1754442646356,-1269.3,0.00035616,14]
[377558268,1754442646366,-1328.676612,0.00035616,14]